Cogmind - Beta 15 @@@ ROGUE MODE // 2025.08.16 @ 14:23:14 Player: StaticNoob Result: Destroyed by 31-5LS(j) with Overtuned Pulse Rifle Performance ------------- Evolutions (0) 0 Regions Visited (3) 600 Robots Destroyed (10) 50 Value Destroyed (234) 234 Prototype IDs (15) 300 Alien Tech Used (0) 0 Bonus (800) 800 TOTAL SCORE: 1984 Bonus ------- Registered with UFD 300 Met Optimus in HQ 500 Cogmind --------- Core Integrity 0/250 Matter 243/300 Energy 125/125 System Corruption 0% Temperature Cool (12) Movement Hovering (120) Ox1 Location -9/Scraptown Parts ------- > --- POWER (1) -------- Light Ion Engine > --- PROPULSION (2) --- Hover Unit > --- UTILITY (2) ------ Small Storage Unit > --- WEAPON (2) ------- Mini Grenade Launcher Makeshift Spear > --- INVENTORY (8) ---- Advanced Heat Sink Medium Storage Unit Improved Signal Interpreter Experimental Terrain Scanner High-powered Tractor Beam Improved EM Pulse Cannon Rocket Launcher Peak State ------------ > --- POWER ------------ Improved Ion Engine > --- PROPULSION ------- Improved Medium Treads Armored Wheel > --- UTILITY ---------- Small Storage Unit Seismic Detector > --- WEAPON ----------- Flak Gun Heavy Flak Cannon > --- INVENTORY -------- Ion Engine Light Ion Engine Advanced Heat Sink Improved Signal Interpreter Medium Armor Plating Tractor Beam Arc Projector Improved EM Pulse Cannon [Rating: 22] Favorites ----------- Power Light Ion Engine Engine Light Ion Engine Power Core Light Nuclear Core Propulsion Light Treads Treads Light Treads Wheel Armored Wheel Hover Unit Improved Hover Unit Utility Seismic Detector Device Seismic Detector Storage Small Storage Unit Weapon Light Assault Rifle Energy Gun Small Laser Ballistic Gun Light Assault Rifle Ballistic Cannon Heavy Flak Cannon Launcher Mini Grenade Launcher Piercing Weapon Makeshift Spear Build | -11 -10 -10 -9 ------- Run | Yrd Mat Sub Scr Slots Evolved . | . . . . Power . | . . . . Propulsion . | . . . . Utility . | . . . . Weapon . | . . . . Parts Attached 22 | 7 2 1 12 Power 3 | 1 1 . 1 Engine 2 | 1 . . 1 Core 1 | . 1 . . Reactor . | . . . . Propulsion 7 | 2 . . 5 Treads 3 | 2 . . 1 Leg . | . . . . Wheel 1 | . . . 1 Hover 3 | . . . 3 Flight . | . . . . Utility 4 | 2 1 . 1 Device 1 | 1 . . . Storage 3 | 1 1 . 1 Processor . | . . . . Hackware . | . . . . Protection . | . . . . Artifact . | . . . . Weapon 8 | 2 . 1 5 Energy Gun 1 | 1 . . . Energy Cannon . | . . . . Ballistic Gun 2 | 1 . . 1 Ballistic Cannon 1 | . . . 1 Launcher 3 | . . 1 2 Special Weapon . | . . . . Impact Weapon . | . . . . Slashing Weapon . | . . . . Piercing Weapon 1 | . . . 1 Special Melee Weapon . | . . . . Unidentified Prototypes . | . . . . Parts Lost 7 | . . 4 3 Power 1 | . . 1 . Propulsion 3 | . . 1 2 Utility 1 | . . . 1 Weapon 2 | . . 2 . Highest Loss Streak 4 | . . 4 3 To Critical Strikes . | . . . . Average Backups 5 | . 3 4 7 Power 1 | . . 2 1 Propulsion . | . . . . Utility 2 | . 1 2 4 Weapon . | . . . 1 Tool/Special . | . . . . Unused Backups 10 | . . . 10 Power 1 | . . . 1 Propulsion . | . . . . Utility 7 | . . . 7 Weapon 2 | . . . 2 Tool/Special . | . . . . Average Slot Usage (%) 85 | . 95 75 83 Engine 10 | . 10 . 12 Core 3 | . 3 13 . Treads 14 | . 25 13 9 Wheel 5 | . . . 9 Hover 4 | . . . 7 Device 13 | . 14 14 13 Storage 13 | . 14 13 13 Energy Gun 3 | . 12 . . Ballistic Gun 9 | . 14 13 6 Ballistic Cannon 3 | . . . 6 Launcher 3 | . . 6 3 Peak Build Rating 22 | 7 9 8 22 Average Rating 11 | 4 7 7 15 On Entrance 3 | . 7 7 1 Naked Turns . | . . . . Heaviest Build 50 | 11 48 50 25 Greatest Support 40 | 40 40 20 14 Greatest Overweight (x) 15 | . 15 2 3 Average Overweight (x) . | . . 1 . Largest Inventory Capacity 20 | 8 20 20 10 Average Capacity 11 | 7 13 19 7 Most Carried 9 | . 5 5 9 Average Carried 5 | . 3 4 7 Final Capacity 20 | 8 20 5 8 Final Carried 7 | . 5 4 7 Class Distribution -------------------- 100% | Mutant Dominant Class ---------------- Mutant | -10/Materials Mutant | -10/Subcaves Mutant | -9/Scraptown Resources | -11 -10 -10 -9 ----------- Run | Yrd Mat Sub Scr Matter Collected 489 | 121 177 . 191 Remotely . | . . . . Salvage Created 334 | 25 176 . 133 Parts 23 | 4 11 . 8 Haulers Intercepted . | . . . . Recyclers Shooed . | . . . . Parts Field Recycled . | . . . . Retrieved Matter . | . . . . Parts Self-Destructed 9 | . . 9 . Prevented . | . . . . Kills | -11 -10 -10 -9 ------- Run | Yrd Mat Sub Scr Combat Hostiles Destroyed 9 | . 6 . 3 Guns 6 | . 6 . . AOE 3 | . . . 3 Classes Destroyed 6 | 1 2 . 3 Tunneler 1 | 1 . . . Swarmer 3 | . 3 . . Grunt 3 | . 3 . . Bolteater 1 | . . . 1 Federalist 1 | . . . 1 Guru 1 | . . . 1 Best Kill Streak 3 | 1 3 . 2 Combat Bots Only 3 | . 3 . 2 Max Kills in Single Turn 2 | 1 1 . 2 Gunslinging . | . . . . Exploded 2 | . . . 2 Melee . | . . . . Uniques/NPCs Destroyed . | . . . . Combat | -11 -10 -10 -9 -------- Run | Yrd Mat Sub Scr Hostile Shots Fired 71 | . 29 23 19 Missed 21 | . 9 7 5 Hits 50 | . 20 16 14 Melee 2 | . . . 2 Projectile 48 | . 20 16 12 Critical Strikes 2 | . . . 2 Damage Taken 930 | . 226 399 305 Core 263 | . 41 119 103 Absorbed by Shields . | . . . . Core Remaining (%) 100 | 100 . . . Volleys Fired 42 | 2 27 10 3 Largest 2 | 2 2 2 1 Hottest 60 | 60 60 50 33 Shots Fired 64 | 4 46 11 3 Gun 58 | 4 46 8 . Cannon . | . . . . Launcher 6 | . . 3 3 Special . | . . . . Kinetic 37 | 2 27 8 . Thermal 21 | 2 19 . . Explosive 6 | . . 3 3 Electromagnetic . | . . . . Robot Hit Streak 6 | 2 5 5 6 Robot Miss Streak 3 | 1 3 1 1 Penetration Max . | . . . . Secondary Targets . | . . . . Shots Hit Robots 41 | 2 27 8 4 Core Hits 23 | 1 12 1 9 Critical Kills . | . . . . Critical Parts Destroyed . | . . . . Critical Strikes . | . . . . Melee Attacks 2 | . . . 2 Impact . | . . . . Slashing . | . . . . Piercing 2 | . . . 2 Sneak Attacks . | . . . . Combat Hostiles . | . . . . Follow-up Attacks . | . . . . Damage Inflicted 716 | 19 262 178 257 Guns 345 | 19 261 65 . Cannons . | . . . . Explosions 323 | . . 113 210 Melee 47 | . . . 47 Ramming 1 | . 1 . . Kinetic 188 | 7 116 65 . Thermal 157 | 12 145 . . Explosive 323 | . . 113 210 Electromagnetic . | . . . . Impact . | . . . . Slashing . | . . . . Piercing 47 | . . . 47 Highest Corruption . | . . . . Average Corruption . | . . . . Corruption Purged . | . . . . Corruption Blocked . | . . . . Overload Shots . | . . . . Overflow Damage 10 | . . 3 7 Projectiles . | . . . . Explosions 3 | . . 3 . Melee 7 | . . . 7 Knockbacks . | . . . . Impact . | . . . . Kinetic . | . . . . Secondary . | . . . . Self-Inflicted Damage 52 | . . 52 . Shots 2 | . . 2 . Rammed 2 | 1 1 . . Targets Rammed 2 | 1 1 . . Kicked . | . . . . Crushed . | . . . . Highest Temperature 103 | 20 103 . 23 Average Temperature 41 | 15 45 . 15 Received Heat Transfer 290 | . 108 . 182 Siege Activations . | . . . . Martial Activations . | . . . . Shielding Activations . | . . . . Robots Disrupted . | . . . . Combat Hostiles . | . . . . Robots Corrupted . | . . . . Combat Hostiles . | . . . . Parts Fried . | . . . . Impact Corruptions . | . . . . Robots Melted . | . . . . Combat Hostiles . | . . . . Parts Melted . | . . . . Heat Transferred 350 | 25 325 . . Parts Sabotaged . | . . . . Parts Stolen . | . . . . Parts Stripped . | . . . . Power Chain Reactions . | . . . . Alert | -11 -10 -10 -9 ------- Run | Yrd Mat Sub Scr Maximum Alert Level . | . . . . Low Security (%) 100 | 100 100 . . Level 1 . | . . . . Level 2 . | . . . . Level 3 . | . . . . Level 4 . | . . . . Level 5 . | . . . . High Security . | . . . . Max Security . | . . . . Peak Influence 80 | 5 80 . . Initial . | . . . . Average 24 | . 28 . . Influence Increases 185 | 5 180 . . Destroy 0b10 Robot/C 120 | . 120 . . Destroy 0b10 Robot/NC 5 | 5 . . . Destroy Leader 30 | . 30 . . Lose Combat Pursuer 30 | . 30 . . Influence Decreases 185 | 5 158 22 . Entered New Map 11 | . . 11 . Time Decay 174 | 5 158 11 . Squads Dispatched 1 | . 1 . . Investigation . | . . . . Extermination . | . . . . Reinforcement 1 | . 1 . . Assault . | . . . . Garrison . | . . . . Intercept . | . . . . Searches Triggered . | . . . . Construction Impeded . | . . . . Haulers Reinforced . | . . . . Active Scanning Responses . | . . . . Cargo Convoy Interrupts . | . . . . Stealth | -11 -10 -10 -9 --------- Run | Yrd Mat Sub Scr Distress Signals . | . . . . Communications Jammed . | . . . . Distress Signals . | . . . . Times Spotted 34 | . 15 3 16 Peak Tracking Total 6 | . 5 3 6 Tactical Retreats 3 | . 1 . 2 Traps | -11 -10 -10 -9 ------- Run | Yrd Mat Sub Scr Traps Triggered 2 | . 2 . . Indirectly . | . . . . Trap Hack Attempts . | . . . . Triggered . | . . . . Disarmed . | . . . . Reprogrammed . | . . . . Reused . | . . . . Traps Extracted . | . . . . Installed . | . . . . Triggered . | . . . . Machines | -11 -10 -10 -9 ---------- Run | Yrd Mat Sub Scr Machines Disabled 1 | . . . 1 Max in Single Turn 1 | . . . 1 Machines Repaired . | . . . . Machines Dismantled . | . . . . Machines Sabotaged . | . . . . Overloaded Fab Kills . | . . . . Hacking | -11 -10 -10 -9 --------- Run | Yrd Mat Sub Scr Machines Accessed 6 | . 4 . 2 Terminals 4 | . 4 . . Fabricators . | . . . . Repair Stations . | . . . . Recycling Units . | . . . . Scanalyzers . | . . . . Garrison Access . | . . . . Total Hacks 22 | . 16 . 6 Successful 12 | . 6 . 6 Failed 10 | . 10 . . Catastrophic 1 | . 1 . . Database Lockouts . | . . . . Manual 16 | . 16 . . Terminals 16 | . 16 . . Fabricators . | . . . . Repair Stations . | . . . . Recycling Units . | . . . . Scanalyzers . | . . . . Garrison Access . | . . . . Terminal Hacks 8 | . 2 . 6 Robot Analysis 6 | . 1 . 5 Prototype ID Bank 1 | . 1 . . Proto ID Catalog 1 | . . . 1 Fabricator Hacks . | . . . . Repair Station Hacks . | . . . . Recycling Unit Hacks . | . . . . Scanalyzer . | . . . . Garrison Access Hacks . | . . . . Unauthorized Hacks 4 | . 4 . . Terminals 4 | . 4 . . Botnet 1 | . 1 . . Operators 1 | . 1 . . Skim 2 | . 2 . . Fabricators . | . . . . Repair Stations . | . . . . Recycling Units . | . . . . Scanalyzers . | . . . . Garrison Access . | . . . . Data Cores Recovered . | . . . . Used . | . . . . Hacking Detections 4 | . 4 . . Full Trace Events . | . . . . Feedback Events . | . . . . Feedback Blocked . | . . . . Robot Schematics Acquired . | . . . . Robots Built . | . . . . Authchips . | . . . . Time . | . . . . Total Robot Build Rating . | . . . . Part Schematics Acquired . | . . . . Parts Built . | . . . . Authchips . | . . . . Time . | . . . . Total Part Build Rating . | . . . . Parts Repaired . | . . . . Time . | . . . . Parts Recycled . | . . . . Recycled Matter . | . . . . Retrieved Matter . | . . . . Retrieved Components . | . . . . Parts Scanalyzed . | . . . . Part Schematics Acquired . | . . . . Parts Damaged . | . . . . Bothacking | -11 -10 -10 -9 ------------ Run | Yrd Mat Sub Scr Used RIF Installer . | . . . . Robots Hacked . | . . . . Non-combat . | . . . . Combat . | . . . . Robot Hacks Applied . | . . . . Relay Couplers Released . | . . . . Fabnet Peak Effective % . | . . . . Robots Rewired . | . . . . Allies Hacked . | . . . . Hacks Repelled . | . . . . Allies | -11 -10 -10 -9 -------- Run | Yrd Mat Sub Scr Total Allies . | . . . . Largest Group . | . . . . Highest-Rated Group . | . . . . Highest-Rated Ally . | . . . . Total Orders . | . . . . Ally Attacks . | . . . . Total Damage . | . . . . Kills . | . . . . Allies Corrupted . | . . . . Allies Melted . | . . . . Intel | -11 -10 -10 -9 ------- Run | Yrd Mat Sub Scr Active Infowar (turns) 1852 | 8 502 318 1024 Seismic 1852 | 8 502 318 1024 Robot Analysis Total 6 | . 1 . 5 Derelict Logs Recovered 1 | . . 1 . Drone Launches . | . . . . Drone Recoveries . | . . . . Exploration | -11 -10 -10 -9 ------------- Run | Yrd Mat Sub Scr Turns Passed 1931 | 72 502 318 1039 Spaces Moved 1484 | 38 215 102 1129 Core 126 | 5 2 18 101 Treads 330 | 33 213 84 . Legs . | . . . . Wheels 603 | . . . 603 Hover 425 | . . . 425 Flight . | . . . . Fastest Speed 50 | 50 160 50 50 Average Speed 116 | 145 191 275 87 Slowest Speed 800 | 160 800 320 240 Overloaded Moves . | . . . . Propulsion Burnouts . | . . . . Robots Hopped . | . . . . Potential Cave-ins 2 | . . . 2 Cave-ins Triggered . | . . . . Exploration Rate (%) 35 | 3 47 7 85 Regions Visited 3 Branch Regions 2 Pre-discovered Areas . | . . . . Known Exits Taken . | . . . . Unknown Exits Taken 3 | 1 1 1 . Scrap Searched 5 | . . . 5 Spaces Dug . | . . . . Terrain Destroyed 42 | . . 23 19 Melee . | . . . . Projectile . | . . . . AOE 42 | . . 23 19 Terrain Rammed . | . . . . Walls Destroyed . | . . . . Machines Disabled . | . . . . Actions | -11 -10 -10 -9 --------- Run | Yrd Mat Sub Scr Total 1614 | 47 261 129 1177 Wait 27 | . 11 16 . Move 1481 | 37 214 101 1129 Hop . | . . . . Pick Up 17 | . 3 . 14 Fast Attach 19 | 7 3 . 9 Attach 4 | . . 1 3 Detach . | . . . . Swap 6 | . 2 . 4 Drop 14 | . . 1 13 Fire 42 | 2 27 10 3 Melee 2 | . . . 2 Ram . | . . . . Kick . | . . . . Crush 2 | 1 1 . . Escape Stasis . | . . . . Rewire . | . . . . Trap . | . . . . Miscellaneous . | . . . . Route ------- -11/Scrapyard -10/Materials (discovered 3 exits: [*Min x2] / [*Sub]) -10/Subcaves (discovered 2 exits: Rec / *Scr) -9/Scraptown (discovered 1 exit: [*Fac]) History --------- Turn | Location | Event 7 | -11/Scrapyard | Discovered new exit (range 15) 73 | -11/Scrapyard | Entered Materials 130 | -10/Materials | Discovered new exit (range 8) 314 | -10/Materials | Build established: Mutant 417 | -10/Materials | Discovered new exit (range 6) 546 | -10/Materials | Discovered new exit (range 10) 575 | -10/Materials | Entered Subcaves 576 | -10/Subcaves | Approached by a straggling Scientist 646 | -10/Subcaves | Identified exit to Recycling 679 | -10/Subcaves | Scientist uncovered a shortcut to Scraptown 879 | -10/Subcaves | Core integrity fell below 50% 893 | -10/Subcaves | Entered Scraptown 912 | -9/Scraptown | Heard Great Nut preacher, LISTEN AND RECITE! 918 | -9/Scraptown | Lost 4 parts (1p1n2w) 1063 | -9/Scraptown | Discovered new exit (range 13) 1103 | -9/Scraptown | Visited Spacefarers 1121 | -9/Scraptown | Visited Red Mages 1292 | -9/Scraptown | Visited Junk Repository 1332 | -9/Scraptown | Visited UFD Registry 1332 | -9/Scraptown | Registered with UFD as "Biopod" 1356 | -9/Scraptown | Visited Assassins FH 1422 | -9/Scraptown | Visited Science Guys 1467 | -9/Scraptown | Visited Research Penetration Think Tank 1495 | -9/Scraptown | Visited Chapter 10 1513 | -9/Scraptown | Visited Derelict Rescue Squad 1536 | -9/Scraptown | Visited Scrapoid Pod Storage 1576 | -9/Scraptown | Visited Analyses Database 1603 | -9/Scraptown | Visited DA-N13 Charitable Foundation 1608 | -9/Scraptown | Found DCF Scrap (30 items) 1763 | -9/Scraptown | Visited Infowarlord's Domain 1768 | -9/Scraptown | Found Exp. Terrain Scanner 1780 | -9/Scraptown | Visited Curators Association 1835 | -9/Scraptown | Met Optimus 1835 | -9/Scraptown | Accepted into 0bPrime 1862 | -9/Scraptown | Civil war broke out across Scraptown 1930 | -9/Scraptown | Core integrity fell below 20% 1932 | -9/Scraptown | Destroyed by 31-5LS(j) with Overtuned Pulse Rifle Last Messages --------------- 01908_ ZD-ADK(j) Lgt. Deuterium Engine ripped off. 01908_ 0O-JBO(r) destroyed. 01910_ E0-6S1(r) follow-up attacks with Ripteeth. 01910_ ZD-ADK(j) Ovr. Titanium Leg ripped off. 01911_ E0-6S1(r) destroyed. 01911_ ZD-ADK(j) destroyed. 01912_ 1T-WSQ(j) destroyed. 01915_ Slug penetrates 1S-6RW(r). 01916_ Critical hit (Burn: +50). 01916_ Destroyed Ripteeth. 01917_ Seismic Detector destroyed. 01918_ Slug penetrates 1S-6RW(r). 01918_ Destroyed Ripteeth. 01920_ Imp. Hover Unit destroyed. 01921_ Critical hit (Burn: +50). 01922_ Slug penetrates F7-AHC(j). 01924_ Slug penetrates Machine. 01925_ B4-S7Z(E) destroyed. Map ----- +----------------------------------------------------+ | #???????#" =* "" | | #????####" [ | | #????"""" """""""""""""""""""""" """"" "% | | #????"""" """""""""""""""""""""""""""" "# | | #???#"""" ""###### ################"" "# | | #???#"""" ""# ##????????#"" "# | | #???#"""" ""# X"#????????#"" "# | | ###?#"""" ""# "" "" ##????????#"" "# | | ""#"#"""" ""# "" "" X"#??????###"" "# | | """"#"""" ""# " " ######### #"" "# | | ""#######" "" "" =%[ | | ###?????#" "" "" !! "# | | #########" ""# " " ######### #"" "# | | ""# "" "" ""#??????###"" "# | | ""# "" "" ##????????#"" "# | | ""# X"#????????#"" "# | | ""# ##????????#"" "# | | ""###### ################"" "# | | """""""""""""""""""""""""""" "# | | r"""""""""" """ """""""""""" | | [%= !=%! E "# | | ! j /==[%=[ "# | | j = !%!%=!=!%= [%[ "# | | #""""#" =%! !**[%*== %[*= # | | #????#" gj [/=!![! !=%! | | #????#"""""" " @ """"!"""" """""" # | | ####????####### ##### ########## ###### # | | #????????#" " #????? ???# # | | #????????##"" ""### ## #????# #?# # | | #?????????#!" "*#?#### #???#" "## # | | #?????????#"" ""#????# #???#"! !"## # | | #????????#" "#???# #???#" "## # | | #????????##""% ""##???# ! #???#"! !"## # | | #?????????#!" "&#????# #???#" "## | | #?????????#"" ""#????# #???## X###?# | | #?????????" """ "????#######????" "#???# | | #????????#### "!" ###???????????????"! "???# | | #???????????#"###"#?????????????????####?????# | | #???????????##???##??????????????????????????# # | | #????######################################### # | | #????# ##"""##"""##"""##"""##"""##"|"# " | | #????# """"""" ## ""##|""##" "##"""##""|##" # " | | #????# """"""" | | #????? """"""" " | | #??????""""""" ![! " | | #???????"""""" ##"""##"""##"" ##"|"##!!%##""|## ## | | #??????? ##"""##"""##"""##"""##"""##"""####? | | #??????#######################################???? | | #????????????????????????????????????????????????? | | #????????????????????????????????????????????????? | +----------------------------------------------------+ Best States ------------- Heat Dissipation 25 Energy Generation 14 Energy Capacity 265 Matter Stores 300 Matter Capacity 300 Sight Range 16 Terrain Scan Density 10 Evasion (%) 53 Recoil Reduction 2 Item Schematics ----------------- None Robot Schematics ------------------ None Fabricated ------------ Nothing Repaired ---------- Nothing Alien Tech Used ----------------- None Achievements -------------- None Challenges ------------ None Game ------ Seed ArcsightReflexSuperbattery Manual? 0 Play Time 00:17:00 Cumulative 184.7 hours Start 2025.08.16 @ 14:08:37 End 2025.08.16 @ 14:23:14 Sessions 1 Manual Loads 0 Difficulty Rogue Special Mode None Game No. 154 Rogue 154 Adventurer 0 Explorer 0 Win Type - Total 5 Types 3/0/1/1/0/0/0/0/0/0 Lore% 77 Gallery% 71 Achievement% 65 Wizard Run 0 Options --------- Layout 1 ASCII 0 Keyboard 0 Movement Numpad Keybinds 0 Fullscreen 1 Font 24/Smallcaps Map View 50x35 Zoom Use 0% Tactical HUD 1 Map Filters NONE Filters NONE Steam 1 RUN: 954a1d94-772b-4301-aa62-fc6bb22710a0